fUST/lending_fUST_20250510
["ID","MTS","AMOUNT","RATE_DAILY","PERIOD"]
[360475434,1746810308114,-500.0,9.528e-05,2]
[360475435,1746810308138,-500.0,9.528e-05,2]
[360475436,1746810308161,-500.0,9.528e-05,2]
[360475437,1746810308189,-500.0,9.528e-05,2]
[360475438,1746810308213,-500.0,9.528e-05,2]
[360475439,1746810308238,-500.0,9.528e-05,2]
[360475440,1746810308268,-500.0,9.528e-05,2]
[360475441,1746810308290,-500.0,9.528e-05,2]
[360475442,1746810308313,-500.0,9.528e-05,2]
[360475443,1746810308335,-644.72520001,9.528e-05,2]
[360475444,1746810308361,-500.0,9.528e-05,2]
[360475445,1746810311752,-152.92905861,9.529e-05,2]
[360475446,1746810323564,500.0,9.528e-05,2]
[360475447,1746810323597,500.0,9.528e-05,2]
[360475448,1746810323632,500.0,9.528e-05,2]
[360475449,1746810323664,334.61492731,9.528e-05,2]
[360475450,1746810326646,-165.38507269,9.528e-05,2]
[360475451,1746810326669,-7.45031124,9.528e-05,2]
[360475452,1746810341657,-202.11111492,9.529e-05,2]
[360475467,1746810357311,-298.59660331,9.529e-05,2]
[360475482,1746810372852,-220.22126439,9.529e-05,2]
[360475483,1746810387769,-435.70584783,9.529e-05,2]
[360475484,1746810388251,340.81851277,9.528e-05,2]
[360475485,1746810394336,500.0,9.528e-05,2]
[360475486,1746810394390,200.0,9.528e-05,2]
[360475487,1746810401590,-289.8644553,9.529e-05,2]
[360475488,1746810405147,121.18148723,9.528e-05,2]
[360475490,1746810416651,-254.53534895,9.528e-05,2]
[360475495,1746810432157,-177.87538888,9.527e-05,2]
[360475496,1746810440925,-122.12461112,9.527e-05,2]
[360475497,1746810440957,-124.28316382,9.528e-05,2]
[360475498,1746810440990,-500.0,9.528e-05,2]
[360475499,1746810441018,-500.0,9.528e-05,2]
[360475500,1746810441046,-500.0,9.528e-05,2]
[360475501,1746810441074,-500.0,9.528e-05,2]
[360475502,1746810441103,-500.0,9.528e-05,2]
[360475503,1746810441131,-500.0,9.528e-05,2]
[360475504,1746810441160,-500.0,9.528e-05,2]
[360475505,1746810441190,-500.0,9.528e-05,2]
[360475506,1746810441222,-500.0,9.528e-05,2]
[360475507,1746810441257,-500.0,9.528e-05,2]
[360475508,1746810441287,-500.0,9.528e-05,2]
[360475509,1746810441317,-500.0,9.528e-05,2]
[360475510,1746810441344,-500.0,9.528e-05,2]
[360475511,1746810441372,-500.0,9.528e-05,2]
[360475512,1746810441775,377.59222506,9.528e-05,2]
[360475514,1746810446587,-122.40777494,9.528e-05,2]
[360475515,1746810446608,-199.71683618,9.528e-05,2]
[360475518,1746810461589,-462.76566017,9.528e-05,2]
[360475519,1746810477233,-294.24922224,9.528e-05,2]
[360475520,1746810491630,-218.36389089,9.527e-05,2]
[360475521,1746810506627,-81.63610911,9.527e-05,2]
[360475522,1746810506650,-218.36389089,9.528e-05,2]
[360475523,1746810507363,-8115.79038874,9.528e-05,2]
[360475524,1746810507384,-300.28316382,9.528e-05,2]
[360475525,1746810507407,-500.0,9.528e-05,2]
[360475526,1746810507428,-500.0,9.528e-05,2]
[360475527,1746810507449,-500.0,9.528e-05,2]
[360475528,1746810507470,-557.76723988,9.528e-05,2]
[360475529,1746810507491,-500.0,9.528e-05,2]
[360475530,1746810507512,-500.0,9.528e-05,2]
[360475531,1746810507533,-500.0,9.528e-05,2]
[360475532,1746810507555,-500.0,9.528e-05,2]
[360475533,1746810507575,-500.0,9.528e-05,2]
[360475534,1746810507596,-500.0,9.528e-05,2]
[360475535,1746810507617,-500.0,9.528e-05,2]
[360475536,1746810507637,-500.0,9.528e-05,2]
[360475538,1746810507658,-500.0,9.528e-05,2]
[360475539,1746810507679,-500.0,9.528e-05,2]
[360475541,1746810507699,-500.0,9.528e-05,2]
[360475542,1746810507719,-500.0,9.528e-05,2]
[360475543,1746810507738,-500.0,9.528e-05,2]
[360475544,1746810507757,-500.0,9.528e-05,2]
[360475545,1746810507778,-500.0,9.528e-05,2]
[360475546,1746810507800,-500.0,9.528e-05,2]
[360475547,1746810507819,-500.0,9.528e-05,2]
[360475548,1746810507840,-500.0,9.528e-05,2]
[360475549,1746810507864,-500.0,9.528e-05,2]
[360475550,1746810507887,-500.0,9.528e-05,2]
[360475551,1746810507909,-500.0,9.528e-05,2]
[360475552,1746810507930,-500.0,9.528e-05,2]
[360475553,1746810507950,-500.0,9.528e-05,2]
[360475554,1746810507972,-500.0,9.528e-05,2]
[360475555,1746810521681,-182.86799306,9.529e-05,2]
[360475556,1746810536778,-53.80949853,9.529e-05,2]
[360475557,1746810536800,-264.0775468,9.529e-05,2]
[360475558,1746810536830,-89.41242691,9.628e-05,2]
[360475560,1746810551598,-195.40105552,9.627e-05,2]
[360475561,1746810566700,-104.59894448,9.627e-05,2]
[360475562,1746810566733,-154.30508992,9.628e-05,2]
[360475563,1746810581602,-256.28248317,9.628e-05,2]
[360475564,1746810581633,-8.87998654,9.628e-05,2]
[360475565,1746810596650,-300.0,9.628e-05,2]
[360475567,1746810611668,-173.23296813,9.627e-05,2]
[360475570,1746810626858,-126.76703187,9.627e-05,2]
[360475571,1746810626892,-191.12001346,9.628e-05,2]
[360475572,1746810626925,-104.19117216,9.628e-05,2]
[360475628,1746810632062,-293.20454618,9.628e-05,2]
[360475941,1746810636863,-102.60428166,9.628e-05,2]
[360475942,1746810636874,-500.0,9.628e-05,2]
[360475943,1746810636884,-500.0,9.628e-05,2]
[360475944,1746810636895,-500.0,9.628e-05,2]
[360475945,1746810636907,-500.0,9.628e-05,2]
[360475946,1746810636917,-500.0,9.628e-05,2]
[360475947,1746810636926,-500.0,9.628e-05,2]
[360475948,1746810636935,-500.0,9.628e-05,2]
[360475949,1746810636946,-500.0,9.628e-05,2]
[360475950,1746810636955,-500.0,9.628e-05,2]
[360475951,1746810636965,-500.0,9.628e-05,2]
[360475953,1746810636975,-500.0,9.628e-05,2]
[360475954,1746810636985,-500.0,9.628e-05,2]
[360475955,1746810636994,-500.0,9.628e-05,2]
[360475956,1746810637006,-500.0,9.628e-05,2]
[360475957,1746810637017,-500.0,9.628e-05,2]
[360475958,1746810637027,-500.0,9.628e-05,2]
[360475959,1746810637037,-500.0,9.628e-05,2]
[360475960,1746810637048,-500.0,9.628e-05,2]
[360475961,1746810637057,-500.0,9.628e-05,2]
[360475962,1746810637066,-500.0,9.628e-05,2]
[360475963,1746810637076,-500.0,9.628e-05,2]
[360475964,1746810637086,-500.0,9.628e-05,2]
[360475965,1746810637095,-500.0,9.628e-05,2]
[360475966,1746810637106,-500.0,9.628e-05,2]
[360475967,1746810637116,-219.97342171,9.628e-05,2]
[360475968,1746810637126,-500.0,9.628e-05,2]
[360475969,1746810637136,-500.0,9.628e-05,2]
[360475970,1746810637146,-500.0,9.628e-05,2]
[360475971,1746810637156,-500.0,9.628e-05,2]
[360475972,1746810637168,-500.0,9.628e-05,2]
[360475973,1746810637178,-500.0,9.628e-05,2]
[360475974,1746810637188,-500.0,9.628e-05,2]
[360475975,1746810637197,-500.0,9.628e-05,2]
[360475976,1746810637329,-500.0,9.63e-05,2]
[360475977,1746810637346,-500.0,9.63e-05,2]
[360475978,1746810637357,-500.0,9.63e-05,2]
[360475979,1746810637367,-500.0,9.63e-05,2]
[360475980,1746810637378,-500.0,9.63e-05,2]
[360475981,1746810637388,-500.0,9.63e-05,2]
[360475982,1746810637399,-500.0,9.63e-05,2]
[360475983,1746810637410,-450.0,9.63e-05,2]
[360475984,1746810637426,-500.0,9.63e-05,2]
[360475985,1746810637437,-617.68547171,9.63e-05,2]
[360475986,1746810637448,-500.0,9.63e-05,2]
[360475987,1746810637457,-500.0,9.63e-05,2]
[360475988,1746810637467,-505.77672399,9.63e-05,2]
[360475989,1746810637477,-797.80631078,9.631e-05,2]
[360475990,1746810637496,-2890.68957522,9.631e-05,2]
[360475992,1746810637505,-207.4,0.00010114,2]
[360475993,1746810637515,-546.0,0.00010583,2]
[360475994,1746810637524,-2242.0,0.00010583,2]
[360475995,1746810637533,-708.0,0.00010583,2]
[360475996,1746810637543,-404.0,0.00010583,2]
[360475997,1746810637554,-250.0,0.00010584,2]
[360475999,1746810637563,-420.0,0.00010589,2]
[360476000,1746810637573,-201.01492869,0.0001059,2]
[360476001,1746810637582,-150.47602643,0.0001059,2]
[360476002,1746810637592,-6167.58617843,0.00010591,2]
[360476003,1746810637602,-150.47602642,0.00010592,2]
[360476004,1746810637611,-150.47602642,0.00010594,2]
[360476005,1746810637621,-307.4986807,0.00010636,2]
[360476006,1746810637630,-500.0,0.00010673,2]
[360476007,1746810637640,-500.0,0.00010673,2]
[360476008,1746810637650,-500.0,0.00010673,2]
[360476010,1746810637661,-501.10232352,0.00010673,2]
[360476012,1746810637673,-500.0,0.00010673,2]
[360476014,1746810637683,-500.0,0.00010673,2]
[360476016,1746810637694,-500.0,0.00010673,2]
[360476018,1746810637703,-500.0,0.00010673,2]
[360476020,1746810637713,-500.0,0.00010673,2]
[360476021,1746810637723,-500.0,0.00010673,2]
[360476022,1746810637734,-500.0,0.00010673,2]
[360476023,1746810637744,-502.4288027,0.00010673,2]
[360476024,1746810637755,-153.22985442,0.00010673,2]
[360476026,1746810637765,-500.0,0.00010673,2]
[360476028,1746810637775,-316.22943791,0.00010673,2]
[360476030,1746810637785,-500.0,0.00010673,2]
[360476031,1746810637795,-500.0,0.00010673,2]
[360476032,1746810637805,-500.0,0.00010673,2]
[360476033,1746810637815,-500.0,0.00010673,2]
[360476035,1746810637826,-500.0,0.00010673,2]
[360476037,1746810637836,-500.0,0.00010673,2]
[360476039,1746810637846,-500.0,0.00010673,2]
[360476041,1746810637855,-502.80424046,0.00010673,2]
[360476042,1746810637865,-501.37331819,0.00010673,2]
[360476043,1746810637875,-500.0,0.00010673,2]
[360476045,1746810637884,-544.79673586,0.00010673,2]
[360476047,1746810637893,-500.0,0.00010673,2]
[360476049,1746810637903,-495.30513333,0.00010673,2]
[360476051,1746810637914,-500.0,0.00010673,2]
[360476053,1746810637924,-166.747,0.00010673,2]
[360476055,1746810637933,-168.49427722,0.00010688,2]
[360476057,1746810637943,-151.0,0.00010688,2]
[360476059,1746810637953,-17672.25,0.00010688,2]
[360476061,1746810637962,-19472.82183827,0.0001069,2]
[360476723,1746810646162,-392673.227094,0.0001069,2]
[360476725,1746810646178,-5169.59701467,0.0001069,2]
[360476727,1746810646188,-3000.0,0.0001069,2]
[360476729,1746810646197,-153.723693,0.0001069,2]
[360476731,1746810646207,-153.723693,0.0001069,2]
[360476733,1746810646216,-151.0,0.0001069,2]
[360476735,1746810646226,-218.745284,0.0001069,2]
[360476737,1746810646235,-11653.21031533,0.00010693,2]
[360476971,1746810648609,-24572.44267837,0.00010693,2]
[360476973,1746810648625,-658.382266,0.00010693,2]
[360476975,1746810648634,-658.382266,0.00010693,2]
[360476977,1746810648644,-151.0,0.00010693,2]
[360476988,1746810648739,-151.0,0.00010693,2]
[360476991,1746810648757,-153.723693,0.00010693,2]
[360476993,1746810648767,-153.723693,0.00010693,2]
[360476995,1746810648776,-151.0,0.00010693,2]
[360476997,1746810648786,-164.258852,0.00010693,2]
[360476999,1746810648795,-164.258852,0.00010693,2]
[360477001,1746810648804,-151.0,0.00010693,2]
[360477003,1746810648814,-151.0,0.00010693,2]
[360477005,1746810648824,-284.989394,0.00010693,2]
[360477007,1746810648833,-284.989394,0.00010693,2]
[360477009,1746810648843,-151.0,0.00010693,2]
[360477011,1746810648853,-711.900778,0.00010693,2]
[360477013,1746810648863,-711.900778,0.00010693,2]
[360477015,1746810648872,-151.0,0.00010693,2]
[360477017,1746810648882,-151.0,0.00010693,2]
[360477019,1746810648892,-255.043897,0.00010693,2]
[360477021,1746810648903,-151.0,0.00010693,2]
[360477023,1746810648913,-255.043897,0.00010693,2]
[360477025,1746810648922,-151.0,0.00010693,2]
[360477027,1746810648932,-151.0,0.00010693,2]
[360477029,1746810648942,-151.0,0.00010693,2]
[360477031,1746810648952,-151.0,0.00010693,2]
[360477033,1746810648961,-151.0,0.00010693,2]
[360477035,1746810648971,-187.198823,0.00010693,2]
[360477037,1746810648981,-187.198823,0.00010693,2]
[360477039,1746810648990,-178.302302,0.00010693,2]
[360477041,1746810649003,-178.302302,0.00010693,2]
[360477043,1746810649012,-153.185526,0.00010693,2]
[360477045,1746810649021,-151.0,0.00010694,2]
[360477047,1746810649031,-265.18567,0.00010694,2]
[360477049,1746810649041,-151.0,0.00010694,2]
[360477051,1746810649051,-151.0,0.00010694,2]
[360477053,1746810649060,-151.0,0.00010694,2]
[360477055,1746810649070,-151.0,0.00010694,2]
[360477057,1746810649080,-151.0,0.00010694,2]
[360477059,1746810649090,-151.0,0.00010694,2]
[360477061,1746810649100,-151.0,0.00010694,2]
[360477063,1746810649109,-155.346914,0.00010694,2]
[360477065,1746810649120,-151.0,0.00010694,2]
[360477067,1746810649130,-151.0,0.00010694,2]
[360477069,1746810649141,-151.0,0.00010694,2]
[360477071,1746810649151,-151.0,0.00010694,2]
[360477073,1746810649161,-151.0,0.00010694,2]
[360477075,1746810649173,-151.0,0.00010694,2]
[360477077,1746810649183,-153.796335,0.00010694,2]
[360477079,1746810649193,-159.855698,0.00010694,2]
[360477081,1746810649203,-151.0,0.00010694,2]
[360477083,1746810649213,-151.0,0.00010694,2]
[360477085,1746810649223,-151.0,0.00010694,2]
[360477087,1746810649233,-151.0,0.00010694,2]
[360477089,1746810649243,-279.24289132,0.00010694,2]
[360477215,1746810650442,-231.02063494,9.63e-05,2]
[360477819,1746810656728,-202.70512975,9.63e-05,2]
[360478447,1746810671584,-66.27423531,9.63e-05,2]
[360478448,1746810671606,-215.73787127,9.63e-05,2]
[360478449,1746810686643,-46.81172118,9.63e-05,2]
[360478450,1746810686669,-134.60480464,9.63e-05,2]
[360478451,1746810693115,-148.91365055,9.63e-05,2]
[360478452,1746810701897,-161.3812113,9.63e-05,2]
[360478454,1746810712383,-122.13724389,9.63e-05,2]
[360478455,1746810712405,-119.30482798,9.687e-05,2]
[360478456,1746810718773,-255.02637917,9.687e-05,2]
[360478457,1746810731616,-250.0,9.674e-05,2]
[360478458,1746810731643,-13.72043399,9.686e-05,2]
[360478460,1746810747373,-189.63359855,9.686e-05,2]
[360478461,1746810761679,-96.64596746,9.686e-05,2]
[360478462,1746810761704,-81.80897723,9.687e-05,2]
[360478463,1746810776585,-305.62378288,9.627e-05,2]
[360478464,1746810792546,-290.7371516,9.626e-05,2]
[360478465,1746810794746,-9.2628484,9.626e-05,2]
[360478466,1746810794769,-281.4743032,9.686e-05,2]
[360478469,1746810807653,-178.29947224,9.686e-05,2]
[360478470,1746810822091,-128.32726903,9.686e-05,2]
[360478471,1746810822114,-114.76284159,9.686e-05,2]
[360478472,1746810836946,-119.34697401,9.686e-05,2]
[360478473,1746810836967,-48.56652274,9.686e-05,2]
[360478474,1746810852245,-250.0,9.685e-05,2]
[360478475,1746810866639,-50.0,9.685e-05,2]
[360478476,1746810866661,-105.0,9.686e-05,2]
[360478477,1746810881675,-356.75993441,9.685e-05,2]
[360478478,1746810896583,-143.24006559,9.685e-05,2]
[360478479,1746810896612,-128.46207651,9.685e-05,2]
[360478481,1746810911607,-155.53431612,9.684e-05,2]
[360478483,1746810927197,-144.46568388,9.684e-05,2]
[360478484,1746810927233,-66.82259504,9.685e-05,2]
[360478486,1746810942097,-241.97980148,9.685e-05,2]
[360478491,1746810979905,-264.68289886,9.587e-05,2]
[360478492,1746810986888,-188.58518154,9.587e-05,2]
[360478581,1746811770702,-300.00657529,9.427e-05,2]
[360478621,1746811781576,-300.61983829,9.427e-05,2]
[360478639,1746811796661,-430.9797275,9.427e-05,2]
[360478838,1746811811734,-300.0,9.426e-05,2]
[360478839,1746811811756,-19.20889788,9.427e-05,2]
[360478840,1746811826657,-199.02021691,9.427e-05,2]
[360478877,1746811832135,-2006.13205554,9.427e-05,2]
[360478883,1746811832188,-21644.03268859,9.427e-05,2]
[360478885,1746811832198,-500.0,9.678e-05,2]
[360478887,1746811832208,-1026.75475967,9.679e-05,2]
[360478888,1746811832218,-500.0,9.679e-05,2]
[360478890,1746811832228,-500.0,9.679e-05,2]
[360478892,1746811832237,-500.0,9.679e-05,2]
[360478895,1746811832247,-500.0,9.679e-05,2]
[360478898,1746811832258,-500.0,9.679e-05,2]
[360478901,1746811832268,-500.0,9.679e-05,2]
[360478903,1746811832278,-500.0,9.679e-05,2]
[360478905,1746811832288,-178.37053809,9.679e-05,2]
[360478906,1746811832298,-500.0,9.679e-05,2]
[360478909,1746811832308,-500.0,9.679e-05,2]
[360478911,1746811832318,-500.0,9.679e-05,2]
[360478912,1746811832328,-500.0,9.679e-05,2]
[360478913,1746811832338,-500.0,9.679e-05,2]
[360478915,1746811832348,-500.0,9.679e-05,2]
[360478916,1746811832358,-500.0,9.679e-05,2]
[360478917,1746811832368,-500.0,9.679e-05,2]
[360478918,1746811832379,-500.0,9.679e-05,2]
[360478919,1746811832388,-500.0,9.679e-05,2]
[360478920,1746811832398,-500.0,9.679e-05,2]
[360478921,1746811832408,-500.0,9.679e-05,2]
[360478922,1746811832418,-315.57473738,9.679e-05,2]
[360478923,1746811832430,-73.50364901,9.686e-05,2]
[360478924,1746811832559,-163.87687092,9.686e-05,2]
[360478925,1746811832569,-1000.0,0.0001,2]
[360478926,1746811832579,-420.0,0.00010368,2]
[360478927,1746811832589,-500.0,0.000105,2]
[360478928,1746811832598,-733.5697026,0.000105,2]
[360478929,1746811832607,-153.0,0.000105,2]
[360478930,1746811832616,-154.4345933,0.000105,2]
[360478931,1746811832626,-6450.0549761,0.00010594,2]
[360478932,1746811832636,-157.7606797,0.000106,2]
[360478933,1746811832648,-362.7713715,0.000106,2]
[360478934,1746811832658,-153.0,0.000106,2]
[360478935,1746811832667,-586.6486198,0.000106,2]
[360478936,1746811832679,-155.05,0.0001064,2]
[360478937,1746811832689,-295.2496823,0.0001064,2]
[360478938,1746811832699,-500.0,0.00010673,2]
[360478939,1746811832709,-154.61079307,0.00010673,2]
[360478940,1746811832719,-501.43373209,0.00010673,2]
[360478941,1746811832729,-576.15505988,0.00010673,2]
[360478942,1746811832750,-500.0,0.00010673,2]
[360478943,1746811832761,-503.73552033,0.00010673,2]
[360478944,1746811832772,-500.0,0.00010673,2]
[360478945,1746811832783,-500.0,0.00010673,2]
[360478946,1746811832793,-187.73358169,0.00010673,2]
[360478947,1746811832803,-500.0,0.00010673,2]
[360478948,1746811832813,-500.0,0.00010673,2]
[360478949,1746811832825,-500.0,0.00010673,2]
[360478950,1746811832835,-500.0,0.00010673,2]
[360478951,1746811832846,-500.0,0.00010673,2]
[360478952,1746811832856,-500.0,0.00010673,2]
[360478953,1746811832866,-511.4470139,0.00010673,2]
[360478954,1746811832876,-500.0,0.00010673,2]
[360478955,1746811832885,-500.0,0.00010673,2]
[360478956,1746811832895,-500.0,0.00010673,2]
[360478957,1746811832905,-500.0,0.00010673,2]
[360478958,1746811832914,-500.0,0.00010673,2]
[360478959,1746811832924,-500.0,0.00010673,2]
[360478960,1746811832936,-502.16248344,0.00010673,2]
[360478961,1746811832947,-500.0,0.00010673,2]
[360478962,1746811832957,-500.0,0.00010673,2]
[360478963,1746811832968,-2241.0,0.0001069,2]
[360478964,1746811832978,-708.0,0.0001069,2]
[360478965,1746811832988,-404.0,0.0001069,2]
[360478966,1746811832998,-546.0,0.0001069,2]
[360478967,1746811833009,-151.0,0.00010694,2]
[360478968,1746811833019,-151.0,0.00010694,2]
[360478969,1746811833029,-151.0,0.00010694,2]
[360478970,1746811833040,-151.0,0.00010694,2]
[360478971,1746811833050,-192.5351988,0.00010694,2]
[360478972,1746811833060,-151.0,0.00010694,2]
[360478973,1746811833070,-151.0,0.00010694,2]
[360478974,1746811833080,-207.234946,0.00010694,2]
[360478975,1746811833091,-151.0,0.00010694,2]
[360478976,1746811833101,-151.0,0.00010694,2]
[360478977,1746811833111,-153.723693,0.00010694,2]
[360478978,1746811833122,-153.723693,0.00010694,2]
[360478979,1746811833133,-153.723693,0.00010694,2]
[360478980,1746811833143,-153.723693,0.00010694,2]
[360478981,1746811833154,-151.0,0.00010694,2]
[360478982,1746811833164,-151.0,0.00010694,2]
[360478983,1746811833174,-151.0,0.00010694,2]
[360478984,1746811833187,-151.0,0.00010694,2]
[360478985,1746811833196,-164.258852,0.00010694,2]
[360478986,1746811833207,-164.258852,0.00010694,2]
[360478987,1746811833216,-164.258852,0.00010694,2]
[360478988,1746811833226,-164.258852,0.00010694,2]
[360478989,1746811833236,-151.0,0.00010694,2]
[360478990,1746811833246,-151.0,0.00010694,2]
[360478991,1746811833255,-151.0,0.00010694,2]
[360478992,1746811833265,-151.0,0.00010694,2]
[360478993,1746811833275,-151.0,0.00010694,2]
[360478994,1746811833285,-151.0,0.00010694,2]
[360478995,1746811833294,-151.0,0.00010694,2]
[360478996,1746811833304,-151.0,0.00010694,2]
[360478997,1746811833313,-151.0,0.00010694,2]
[360478998,1746811833323,-151.0,0.00010694,2]
[360478999,1746811833333,-151.0,0.00010694,2]
[360479000,1746811833342,-151.0,0.00010694,2]
[360479001,1746811833356,-151.0,0.00010694,2]
[360479002,1746811833366,-151.0,0.00010694,2]
[360479003,1746811833376,-158.078168,0.00010694,2]
[360479004,1746811833386,-255.043897,0.00010694,2]
[360479005,1746811833396,-255.043897,0.00010694,2]
[360479006,1746811833406,-151.0,0.00010694,2]
[360479007,1746811833416,-151.0,0.00010694,2]
[360479008,1746811833425,-151.0,0.00010694,2]
[360479009,1746811833437,-255.043897,0.00010694,2]
[360479010,1746811833447,-255.043897,0.00010694,2]
[360479011,1746811833457,-151.0,0.00010694,2]
[360479012,1746811833467,-151.0,0.00010694,2]
[360479013,1746811833477,-151.0,0.00010694,2]
[360479014,1746811833488,-151.0,0.00010694,2]
[360479015,1746811833498,-151.0,0.00010694,2]
[360479016,1746811833508,-151.0,0.00010694,2]
[360479017,1746811833517,-151.0,0.00010694,2]
[360479018,1746811833527,-151.0,0.00010694,2]
[360479019,1746811833537,-151.0,0.00010694,2]
[360479020,1746811833547,-151.0,0.00010694,2]
[360479021,1746811833557,-153.936315,0.00010694,2]
[360479022,1746811833567,-151.0,0.00010694,2]
[360479023,1746811833577,-151.0,0.00010694,2]
[360479024,1746811833588,-151.0,0.00010694,2]
[360479025,1746811833597,-178.302302,0.00010694,2]
[360479026,1746811833607,-178.302302,0.00010694,2]
[360479027,1746811833616,-178.302302,0.00010694,2]
[360479028,1746811833626,-178.302302,0.00010694,2]
[360479029,1746811833637,-178.302302,0.00010694,2]
[360479030,1746811833652,-178.302302,0.00010694,2]
[360479031,1746811833662,-151.0,0.00010694,2]
[360479032,1746811833672,-151.0,0.00010694,2]
[360479033,1746811833684,-151.0,0.00010694,2]
[360479034,1746811833695,-151.0,0.00010694,2]
[360479035,1746811833706,-151.0,0.00010694,2]
[360479036,1746811833722,-151.0,0.00010694,2]
[360479037,1746811833733,-151.0,0.00010694,2]
[360479038,1746811833743,-151.0,0.00010694,2]
[360479039,1746811833752,-257.227706,0.00010694,2]
[360479040,1746811833762,-246.39686,0.00010694,2]
[360479041,1746811833772,-246.39686,0.00010694,2]
[360479042,1746811833782,-246.39686,0.00010694,2]
[360479043,1746811833792,-246.39686,0.00010694,2]
[360479044,1746811833802,-160.00925,0.00010694,2]
[360479045,1746811833812,-246.39686,0.00010694,2]
[360479046,1746811833823,-246.39686,0.00010694,2]
[360479047,1746811833833,-160.00925,0.00010694,2]
[360479048,1746811833842,-160.00925,0.00010694,2]
[360479049,1746811833852,-160.00925,0.00010694,2]
[360479050,1746811833862,-160.00925,0.00010694,2]
[360479051,1746811833872,-160.00925,0.00010694,2]
[360479052,1746811833882,-151.0,0.00010694,2]
[360479053,1746811833892,-151.0,0.00010694,2]
[360479054,1746811833902,-151.0,0.00010694,2]
[360479055,1746811833912,-151.0,0.00010694,2]
[360479056,1746811833922,-179.760661,0.00010694,2]
[360479057,1746811833937,-426.210435,0.00010694,2]
[360479058,1746811833947,-426.210435,0.00010694,2]
[360479059,1746811833958,-58002.85752518,0.00010694,2]
[360479060,1746811834409,-160828.53884715,0.00010694,2]
[360479061,1746811834419,-83910.11091806,0.00010694,2]
[360479074,1746811838148,-2600.0,9.972e-05,2]
[360479075,1746811838159,-238571.14220502,0.00010694,2]
[360479184,1746811841127,-319133.87043662,0.00010694,2]
[360479721,1746811846318,-4857.84466758,0.00010694,2]
[360481928,1746811895054,-246.45223229,9.426e-05,2]
[360481929,1746811901606,-202.00503541,9.426e-05,2]
[360481930,1746811916657,-71.36168098,9.426e-05,2]
[360481931,1746811916694,-214.90377538,9.426e-05,2]
[360481932,1746811931646,-285.09622462,9.426e-05,2]
[360481933,1746811931681,-87.37856568,9.426e-05,2]
[360481934,1746811946664,-167.06460083,9.426e-05,2]
[360481938,1746811962747,-165.90120861,9.426e-05,2]
[360481940,1746811976598,-79.65562488,9.426e-05,2]
[360481941,1746811976630,-242.029847,9.426e-05,2]
[360482037,1746813032524,-300.0,9.679e-05,2]
[360482043,1746813033040,-811.0,9.679e-05,2]
[360482044,1746813033051,-21309.22210607,9.681e-05,2]
[360482132,1746813040650,-3590.77789393,9.681e-05,2]
[360482135,1746813040659,-2500.0,9.972e-05,2]
[360482138,1746813040669,-265.724714,0.0001064,2]
[360482141,1746813040678,-420.0,0.00010646,2]
[360482144,1746813040687,-4162.85427978,0.00010671,2]
[360482713,1746813046446,-28973.22365993,0.00010671,2]
[360482715,1746813046463,-551.9170859,0.00010673,2]
[360482717,1746813046474,-500.0,0.00010673,2]
[360482719,1746813046484,-500.0,0.00010673,2]
[360482721,1746813046494,-508.80671182,0.00010673,2]
[360482723,1746813046504,-500.0,0.00010673,2]
[360482726,1746813046514,-501.11940847,0.00010673,2]
[360482728,1746813046527,-500.0,0.00010673,2]
[360482730,1746813046536,-500.0,0.00010673,2]
[360482732,1746813046546,-500.0,0.00010673,2]
[360482734,1746813046556,-500.0,0.00010673,2]
[360482736,1746813046565,-500.0,0.00010673,2]
[360482738,1746813046575,-500.0,0.00010673,2]
[360482739,1746813046584,-500.0,0.00010673,2]